bitfinex/quotes_ETHUSD_20240922
["timestamp","ask_amount","ask_price","bid_price","bid_amount"]
[1726971940082,9.07049505,2599.5,2599.4,3.84704]
[1726971940274,7.478,2599.5,2599.4,3.84704]
[1726971940864,9.46584893,2599.5,2599.4,3.84704]
[1726971941598,9.46584893,2599.5,2599.4,6.10554]
[1726971941599,8.52145068,2599.5,2599.4,6.10554]
[1726971945296,6.928,2599.5,2599.4,6.10554]
[1726971946121,8.91584893,2599.5,2599.4,6.10554]
[1726971946421,6.928,2599.5,2599.4,6.10554]
[1726971946621,8.91584893,2599.5,2599.4,6.10554]
[1726971947119,6.928,2599.5,2599.4,6.10554]
[1726971947577,8.91584893,2599.5,2599.4,6.10554]
[1726971948384,1.59755948,2599.6,2599.5,6.84689]
[1726971948686,1.59760996,2599.7,2599.6,6.84674]
[1726971949426,1.99712316,2599.8,2599.7,3.84659]
[1726971950109,4.71064779,2599.9,2599.8,3.84644]
[1726971950303,6.93610257,2599.9,2599.8,3.84644]
[1726971951741,6.93610257,2599.9,2599.7,3.84659]
[1726971951742,0.55,2599.8,2599.7,3.84659]
[1726971951908,2.94543506,2599.8,2599.7,3.84659]
[1726971952243,3.91853129,2599.8,2599.7,3.84659]
[1726971952850,1.52309623,2599.8,2599.5,3.84679]
[1726971953136,2.39538852,2599.7,2599.6,3.84674]
[1726971953305,3.95204881,2599.7,2599.6,3.84674]
[1726971954753,3.95204881,2599.7,2599.5,3.84679]
[1726971954754,0.55,2599.6,2599.5,3.84679]
[1726971954897,2.9933,2599.6,2599.4,3.84703]
[1726971955095,9.8729783,2599.5,2599.4,3.84703]
[1726971955339,10.84607453,2599.5,2599.4,3.84703]
[1726971956702,8.45109623,2599.5,2599.4,3.84703]
[1726971960357,8.45109623,2599.5,2599.3,3.84711]
[1726971960563,8.45109623,2599.5,2599.1,3.8474]
[1726971960564,0.55,2599.2,2599.1,3.8474]
[1726971960870,1.14378076,2599.2,2599.1,3.8474]
[1726971961463,3.53806361,2599.2,2599.1,3.8474]
[1726971963085,3.53681481,2599.2,2599.1,3.8474]
[1726971963839,3.53681481,2599.2,2599.0,3.84762]
[1726971964056,2.94303405,2599.1,2599.0,3.84762]
[1726971964286,3.89446475,2599.1,2599.0,3.84762]
[1726971964983,0.55,2599.0,2598.8,6.8802528]
[1726971965195,3.89446475,2599.1,2598.8,6.8802528]
[1726971965196,9.9213,2598.9,2598.8,3.8802528]
[1726971965657,9.9213,2598.9,2598.7,3.84799]
[1726971965658,0.55,2598.8,2598.7,3.84799]
[1726971965992,3.93516405,2598.8,2598.7,3.84799]
[1726971967651,3.93516405,2598.8,2598.5,3.84827]
[1726971968071,2.94098135,2598.7,2598.6,3.84816]
[1726971968289,0.55,2598.7,2598.6,3.84816]
[1726971968507,1.66786984,2598.7,2598.6,3.84816]
[1726971969445,0.55,2598.6,2598.5,3.84827]
[1726971969641,0.55,2598.6,2598.3,3.84861]
[1726971969946,0.55,2598.6,2598.4,3.84852]
[1726971969947,0.55,2598.5,2598.4,3.84852]
[1726971970147,0.95588512,2598.5,2598.4,3.84852]
[1726971970578,2.94720273,2598.5,2598.4,3.84852]
[1726971971250,0.95588512,2598.5,2598.4,3.84852]
[1726971973800,2.94543714,2598.5,2598.4,3.84852]
[1726971976465,0.95588512,2598.5,2598.4,3.84852]
[1726971977208,2.54612676,2598.5,2598.4,3.84852]
[1726971977406,1.98955202,2598.6,2598.5,9.09957]
[1726971977620,1.59012909,2598.7,2598.6,3.84822]
[1726971977773,6.928,2598.9,2598.8,6.84792]
[1726971977973,9.818022,2599.3,2599.0,3.84763]
[1726971977974,1.59012909,2599.2,2599.0,3.84763]
[1726971978193,1.59012909,2599.2,2598.9,3.84778]
[1726971978194,9.02012909,2599.3,2599.2,3.84733]
[1726971978399,1.98810984,2599.4,2599.3,6.09838]
[1726971978400,1.59012909,2599.4,2599.3,6.09838]
[1726971978584,6.928,2599.5,2599.4,3.84704]
[1726971978773,8.51862353,2599.5,2599.4,3.84704]
[1726971979200,9.56929687,2599.5,2599.4,3.84704]
[1726971979498,9.5693544,2599.5,2599.4,3.84704]
[1726971979684,10.51678318,2599.5,2599.4,3.84704]
[1726971981606,10.11932691,2599.5,2599.4,3.84704]
[1726971985475,6.928,2599.5,2599.4,6.09824]
[1726971990905,6.928,2599.5,2599.4,9.09824]
[1726971991550,1.59065357,2600.0,2599.9,3.8463]
[1726971991841,1.59065357,2600.1,2600.0,3.84615]
[1726971992058,1.59065357,2600.2,2600.1,3.846]
[1726971992339,3.22592893,2600.2,2600.1,3.846]
[1726971995357,1.63527536,2600.2,2600.1,3.846]
[1726971995714,3.22592893,2600.2,2600.1,3.846]
[1726971996164,1.63527536,2600.2,2600.1,3.846]
[1726971998355,8.51865357,2600.3,2600.2,3.84585]
[1726971998556,6.928,2600.3,2600.2,6.26215]
[1726971999552,6.928,2600.3,2600.2,3.84585]
[1726971999763,7.478,2600.3,2600.2,3.84585]
[1726972006335,8.45921,2600.3,2600.2,3.84585]
[1726972019591,10.04986357,2600.3,2600.2,3.84585]
[1726972021390,10.44220523,2600.3,2600.2,3.84585]
[1726972022563,8.45921,2600.3,2600.2,3.84585]
[1726972023550,10.84813694,2600.3,2600.2,3.84585]
[1726972025119,7.478,2600.3,2600.2,3.84585]
[1726972025275,6.928,2600.3,2600.2,3.84585]
[1726972025613,8.92096505,2600.3,2600.2,3.84585]
[1726972026399,8.52259437,2600.3,2600.2,6.23155]
[1726972030597,8.52259437,2600.3,2600.2,9.23155]
[1726972030915,8.52259437,2600.3,2600.2,10.539305]
[1726972031313,8.52259437,2600.3,2600.2,9.23155]
[1726972033332,6.928,2600.3,2600.2,9.23155]
[1726972033691,8.52427592,2600.3,2600.2,9.23155]
[1726972034198,6.928,2600.3,2600.2,9.23155]
[1726972034811,8.52444299,2600.3,2600.2,9.23155]
[1726972035013,6.928,2600.3,2600.2,9.23155]
[1726972035419,8.9228865,2600.3,2600.2,9.23155]
[1726972035721,6.928,2600.3,2600.2,9.23155]
[1726972036300,8.9228865,2600.3,2600.2,9.23155]
[1726972037713,8.92440586,2600.3,2600.2,9.23155]
[1726972039726,6.928,2600.3,2600.2,9.23155]
[1726972039897,8.52524335,2600.3,2600.2,9.23155]
[1726972040543,6.928,2600.3,2600.2,9.23155]
[1726972042342,8.52513273,2600.3,2600.2,9.23155]
[1726972043810,1.59713273,2600.3,2600.2,10.539305]
[1726972044156,1.99634708,2600.5,2600.4,5.2725]
[1726972044157,1.59713273,2600.5,2600.4,5.2725]
[1726972044365,1.99634708,2600.7,2600.6,2.2725]
[1726972044648,1.99634708,2600.7,2600.6,10.74699663]
[1726972044649,1.59702313,2600.7,2600.6,10.74699663]
[1726972045142,1.59702313,2600.8,2600.7,9.11761]
[1726972046241,8.52502313,2600.9,2600.8,3.84497]
[1726972046440,8.52502313,2600.9,2600.8,6.84497]
[1726972047214,1.59702313,2601.0,2600.8,10.74670663]
[1726972047544,0.038548,2601.2,2600.8,10.74670663]
[1726972047545,1.63557113,2601.2,2601.1,6.84452]
[1726972047715,0.038548,2601.2,2601.1,8.825171]
[1726972048661,0.038548,2601.2,2601.1,6.84452]
[1726972048867,1.63557113,2601.2,2601.1,6.84452]
[1726972049422,0.038548,2601.2,2601.1,6.84452]
[1726972049622,1.63557113,2601.2,2601.1,6.84452]
[1726972049819,0.038548,2601.2,2601.1,6.84452]
[1726972050162,0.038548,2601.2,2601.1,8.525171]
[1726972051034,0.038548,2601.2,2601.1,12.51610763]
[1726972065475,0.038548,2601.2,2601.1,10.886871]
[1726972065680,0.038548,2601.2,2601.1,12.51610763]
[1726972066461,0.038548,2601.2,2601.1,10.886871]
[1726972066667,0.038548,2601.2,2601.1,12.51610763]
[1726972077758,0.038548,2601.2,2601.1,3.84452]
[1726972078896,0.038548,2601.2,2601.1,5.47375663]
[1726972079187,0.038548,2601.2,2601.1,8.55063639]
[1726972079356,0.038548,2601.2,2601.1,8.47375663]
[1726972079567,0.038548,2601.2,2601.1,10.94705663]
[1726972079748,0.038548,2601.2,2601.1,12.81071129]
[1726972083394,1.987355,2602.4,2601.9,3.84334]
[1726972083395,2.3067,2602.4,2601.9,3.84334]
[1726972083550,2.3067,2602.4,2601.9,10.95352884]
[1726972083874,2.3067,2602.4,2601.9,6.84334]
[1726972084290,3.90372313,2602.4,2601.9,6.84334]
[1726972084491,2.3067,2602.4,2601.9,6.84334]
[1726972084873,2.345248,2602.0,2601.9,6.84334]
[1726972088303,3.94227113,2602.0,2601.9,6.84334]
[1726972089272,2.345248,2602.0,2601.9,6.84334]
[1726972089785,3.94047519,2602.0,2601.9,6.84334]
[1726972089975,2.345248,2602.0,2601.9,6.84334]
[1726972090408,4.33795925,2602.0,2601.9,6.84334]
[1726972092512,2.345248,2602.0,2601.9,6.84334]
[1726972093678,5.21469954,2602.0,2601.9,3.84334]
[1726972094073,2.81931159,2602.0,2601.9,3.84334]
[1726972097307,2.345248,2602.0,2601.9,3.84334]
[1726972100905,2.345248,2602.0,2601.8,3.84349]
[1726972100906,2.8675,2601.9,2601.8,3.84349]
[1726972101110,9.7955,2601.9,2601.8,3.84349]
[1726972101733,12.59326612,2601.9,2601.8,3.84349]
[1726972101932,14.18656193,2601.9,2601.8,3.84349]
[1726972102756,14.18631654,2601.9,2601.8,3.84349]
[1726972103930,11.38879581,2601.9,2601.8,3.84349]
[1726972104336,14.18631654,2601.9,2601.8,3.84349]
[1726972104732,11.38879581,2601.9,2601.8,3.84349]
[1726972107726,14.18626955,2601.9,2601.8,3.84349]
[1726972108757,11.38879581,2601.9,2601.8,3.84349]
[1726972109057,9.2455,2601.9,2601.8,3.84349]
[1726972112437,6.928,2601.9,2601.8,3.84349]
[1726972113950,9.3258263,2601.9,2601.8,3.84349]
[1726972114727,6.928,2601.9,2601.8,3.84349]
[1726972118564,9.32588141,2601.9,2601.8,3.84349]
[1726972120347,6.928,2601.9,2601.8,3.84349]
[1726972120532,9.32586965,2601.9,2601.8,3.84349]
[1726972121332,6.928,2601.9,2601.8,3.84349]
[1726972121532,9.32590509,2601.9,2601.8,3.84349]
[1726972121939,6.928,2601.9,2601.8,3.84349]
[1726972122138,9.32592861,2601.9,2601.8,3.84349]
[1726972122382,9.32596258,2601.9,2601.8,3.84349]
[1726972123078,9.32593832,2601.9,2601.8,3.84349]
[1726972126578,9.32607451,2601.9,2601.8,3.84349]
[1726972127645,6.928,2601.9,2601.8,3.84349]
[1726972128266,9.32609556,2601.9,2601.8,3.84349]
[1726972128751,6.928,2601.9,2601.8,3.84349]
[1726972128974,9.32617131,2601.9,2601.8,3.84349]
[1726972129289,6.928,2601.9,2601.8,3.84349]
[1726972129876,9.32617288,2601.9,2601.8,3.84349]
[1726972130096,9.32618658,2601.9,2601.8,3.84349]
[1726972130395,6.928,2601.9,2601.8,3.84349]
[1726972130625,9.32623893,2601.9,2601.8,3.84349]
[1726972134169,6.928,2601.9,2601.8,3.84349]
[1726972135167,7.90444323,2601.9,2601.8,3.84349]
[1726972135372,6.928,2601.9,2601.8,3.84349]
[1726972140285,2.83712753,2602.0,2601.9,3.84334]
[1726972140539,0.038548,2602.0,2601.9,3.84334]
[1726972155924,2.8383008,2602.0,2601.9,3.84334]
[1726972156490,0.038548,2602.0,2601.9,3.84334]
[1726972157233,2.8383008,2602.0,2601.9,3.84334]
[1726972157398,0.038548,2602.0,2601.9,3.84334]
[1726972159607,2.8383008,2602.0,2601.9,3.84334]
[1726972167764,4.14565168,2602.0,2601.9,3.84334]
[1726972168094,4.31829888,2602.0,2601.9,3.84334]
[1726972168228,2.84221,2602.0,2601.9,3.84334]
[1726972168830,0.038548,2602.0,2601.9,3.84334]
[1726972169053,2.84232071,2602.0,2601.9,3.84334]
[1726972173327,2.84084906,2602.0,2601.9,3.84334]
[1726972175990,0.038548,2602.0,2601.9,3.84334]
[1726972176805,2.917848,2602.0,2601.9,3.84334]
[1726972176967,2.84026648,2602.0,2601.9,3.84334]
[1726972178405,2.84056471,2602.0,2601.9,3.84334]
[1726972178608,2.8406564,2602.0,2601.9,3.84334]
[1726972179991,0.038548,2602.0,2601.9,3.84334]
[1726972182868,2.84009443,2602.0,2601.9,3.84334]
[1726972183317,0.038548,2602.0,2601.9,3.84334]
[1726972183618,2.84007658,2602.0,2601.9,3.84334]
[1726972187007,0.038548,2602.0,2601.9,3.84334]
[1726972187997,2.84108628,2602.0,2601.9,3.84334]
[1726972188404,4.38194672,2602.0,2601.9,3.84334]
[1726972188606,1.57940844,2602.0,2601.9,3.84334]
[1726972189127,4.38195366,2602.0,2601.9,3.84334]
[1726972189334,1.57940844,2602.0,2601.9,3.84334]
[1726972192826,2.9659,2601.9,2601.8,3.8434]
[1726972192997,2.12940844,2602.0,2601.9,3.84334]
[1726972199494,2.12940844,2602.0,2601.8,3.8434]
[1726972199701,0.78559752,2601.9,2601.8,7.68681]
[1726972200600,0.55,2601.7,2601.5,3.84382]
[1726972200897,2.4159,2601.8,2601.5,3.84393]
[1726972200898,9.73040364,2601.6,2601.5,3.84393]
[1726972201246,6.928,2601.6,2601.5,3.84393]
[1726972206701,9.32978668,2601.6,2601.5,9.28903]
[1726972206900,8.92964845,2601.6,2601.5,10.77293996]
[1726972207919,6.928,2601.6,2601.5,10.77293996]
[1726972208152,8.9296804,2601.6,2601.5,10.77293996]
[1726972209502,6.928,2601.6,2601.5,10.77293996]
[1726972209708,8.92955512,2601.6,2601.5,10.77293996]
[1726972209948,8.92956806,2601.6,2601.5,10.77293996]
[1726972210144,8.92958429,2601.6,2601.5,10.77293996]
[1726972210309,8.92958429,2601.6,2601.5,9.28903]
[1726972210310,6.928,2601.6,2601.5,9.28903]
[1726972216173,11.72048524,2601.6,2601.5,3.84393]
[1726972216404,12.12081611,2601.6,2601.5,3.84393]
[1726972216875,9.3185,2601.6,2601.5,3.84393]
[1726972217034,10.53058161,2601.6,2601.5,3.84393]
[1726972218885,8.14008161,2601.6,2601.4,3.84396]
[1726972219512,2.40087901,2601.5,2601.4,3.84396]
[1726972219791,8.14008161,2601.6,2601.5,3.84393]
[1726972223353,6.928,2601.6,2601.5,3.84393]
[1726972223554,6.928,2601.6,2601.5,6.32853]
[1726972223789,9.32858665,2601.6,2601.5,6.32853]
[1726972224664,6.928,2601.6,2601.5,6.32853]
[1726972231398,6.928,2601.6,2601.5,9.32853]
[1726972231605,2.40084628,2601.9,2601.8,3.84349]
[1726972231980,0.038548,2602.0,2601.9,3.84334]
[1726972232303,2.43913523,2602.0,2601.9,3.84334]
[1726972232799,2.43907397,2602.0,2601.9,3.84334]
[1726972233109,0.038548,2602.0,2601.9,3.84334]
[1726972233799,2.43907397,2602.0,2601.9,3.84334]
[1726972234567,0.038548,2602.0,2601.9,3.84334]
[1726972235205,2.43907397,2602.0,2601.9,3.84334]
[1726972235502,0.038548,2602.0,2601.9,3.84334]
[1726972239914,0.038548,2602.0,2601.9,6.23484]
[1726972240080,0.038548,2602.0,2601.9,10.251983]
[1726972240975,2.03740438,2602.0,2601.9,10.251983]
[1726972241411,1.63763461,2602.0,2601.9,10.251983]
[1726972243533,0.038548,2602.0,2601.9,10.251983]
[1726972243699,1.63763461,2602.0,2601.9,10.251983]
[1726972243895,0.038548,2602.0,2601.9,10.251983]
[1726972251418,0.038548,2602.0,2601.9,9.23484]
[1726972251626,0.038548,2602.0,2601.9,6.84334]
[1726972251957,1.63763461,2602.0,2601.9,6.84334]
[1726972253583,0.038548,2602.0,2601.9,6.84334]
[1726972256168,2.03503289,2602.0,2601.9,6.84334]
[1726972257463,1.63560893,2602.0,2601.9,6.84334]
[1726972259661,0.038548,2602.0,2601.9,6.84334]
[1726972259976,1.63628277,2602.0,2601.9,6.84334]
[1726972260529,2.03503289,2602.0,2601.9,6.84334]
[1726972260806,2.47407618,2602.0,2601.9,6.84334]
[1726972261353,0.47759129,2602.0,2601.9,6.84334]
[1726972261563,2.07507993,2602.0,2601.9,6.84334]
[1726972261932,4.82947618,2602.0,2601.9,3.84334]
[1726972262139,0.038548,2602.0,2601.9,3.84334]
[1726972262359,2.03533217,2602.0,2601.9,3.84334]
[1726972264473,2.0353741,2602.0,2601.9,3.84334]
[1726972267054,0.038548,2602.0,2601.9,3.84334]
[1726972268185,0.51756193,2602.0,2601.9,3.84334]
[1726972268541,0.038548,2602.0,2601.9,3.84334]
[1726972268736,2.43645875,2602.0,2601.9,3.84334]
[1726972270286,2.43645875,2602.0,2601.8,3.8434]
[1726972270287,4.79185875,2602.0,2601.8,3.8434]
[1726972270459,2.39791075,2601.9,2601.8,3.8434]
[1726972271186,2.3247,2601.8,2601.7,3.84363]
[1726972271344,4.72368977,2601.8,2601.7,3.84363]
[1726972272676,2.3247,2601.8,2601.7,3.84363]
[1726972274789,2.3247,2601.8,2601.5,3.84382]
[1726972274961,2.3247,2601.8,2601.1,5.2844]
[1726972274962,6.928,2601.7,2601.6,3.84377]
[1726972275146,7.65513573,2601.7,2601.6,3.84377]
[1726972275346,7.65513573,2601.7,2601.4,3.84397]
[1726972275546,2.3247,2601.5,2601.4,3.84397]
[1726972275843,4.72318507,2601.5,2601.4,3.84397]
[1726972276174,2.3247,2601.5,2601.4,3.84397]
[1726972277666,3.56253208,2601.5,2601.4,3.84397]
[1726972279925,6.928,2601.7,2601.6,6.12818]
[1726972280195,6.928,2601.7,2601.6,9.12818]
[1726972280557,1.63594781,2602.0,2601.9,6.84334]
[1726972280762,1.63594781,2602.0,2601.9,9.12774]
[1726972280763,0.038548,2602.0,2601.9,9.12774]
[1726972283993,1.63594781,2602.0,2601.9,6.84334]
[1726972284766,1.63594781,2602.0,2601.9,3.84334]
[1726972290087,0.038548,2602.0,2601.9,3.84334]
[1726972290987,0.038548,2602.0,2601.9,6.12774]
[1726972291188,0.038548,2602.0,2601.9,10.29547234]
[1726972300744,0.038548,2602.0,2601.9,11.92470897]
[1726972304068,0.038548,2602.8,2602.7,9.17646]
[1726972304209,0.038548,2602.8,2602.7,10.80569663]
[1726972304404,0.038548,2602.8,2602.7,12.27049629]
[1726972306799,0.038548,2602.8,2602.7,10.64125966]
[1726972306970,0.038548,2602.8,2602.7,12.27049629]
[1726972309875,0.038548,2602.8,2602.7,14.16182817]
[1726972315530,2.461748,2603.6,2603.5,9.10188]
[1726972315531,0.038548,2603.6,2603.5,9.10188]
[1726972315734,0.038548,2603.6,2603.5,13.91674951]
[1726972319356,0.038548,2604.3,2603.5,13.91674951]
[1726972319357,0.038548,2604.3,2604.2,9.10085]
[1726972319550,0.038548,2604.3,2604.2,12.62141851]
[1726972321059,0.038548,2605.1,2604.2,12.62141851]
[1726972321060,0.038548,2605.1,2605.0,6.83877]
[1726972321204,0.038548,2605.1,2605.0,9.09967]
[1726972321548,2.4232,2605.8,2605.4,3.0]
[1726972321748,2.4232,2605.7,2605.4,3.83811]
[1726972322047,2.4232,2605.7,2605.4,3.0]
[1726972322199,2.4232,2605.7,2605.3,3.0]
[1726972322403,2.4232,2605.7,2605.4,3.83808]
[1726972322603,0.93512,2605.6,2605.5,3.83803]
[1726972322850,0.93512,2605.6,2605.3,3.0]
[1726972322851,2.9732,2605.5,2605.3,3.0]
[1726972323144,2.9732,2605.5,2605.1,3.83854]
[1726972323356,2.97866,2605.5,2605.1,3.83854]
[1726972324204,2.97866,2605.5,2605.0,3.83874]
[1726972324547,2.4232,2605.2,2605.0,3.83874]
[1726972324772,9.3512,2605.2,2605.0,3.83874]
[1726972325331,2.4232,2605.0,2604.9,3.8389]
[1726972326489,2.4232,2605.0,2604.9,6.8389]
[1726972326630,6.928,2605.2,2605.1,3.83862]
[1726972327727,6.928,2605.2,2604.9,6.83877]
[1726972327936,2.4232,2605.1,2604.9,3.83877]
[1726972328378,2.4232,2605.1,2604.8,3.0]
[1726972328563,2.4232,2605.1,2604.7,6.8392]
[1726972328564,2.4232,2604.9,2604.7,3.8391]
[1726972328731,0.55,2604.8,2604.7,3.8391]
[1726972330643,0.55,2604.8,2604.5,3.83945]
[1726972330644,0.55,2604.8,2604.6,6.83932]
[1726972331869,2.4739,2604.7,2604.3,3.83978]
[1726972332027,6.928,2604.8,2604.3,3.83978]
[1726972332232,6.928,2604.8,2604.4,3.83965]
[1726972332233,3.0239,2604.7,2604.4,3.83965]
[1726972332437,3.0239,2604.7,2604.3,3.83978]
[1726972332438,4.048822,2604.7,2604.3,3.83978]
[1726972332663,2.4739,2604.6,2604.3,3.83978]
[1726972332847,0.55,2604.5,2604.3,3.83978]
[1726972333281,0.55,2604.3,2604.1,3.83998]
[1726972333689,0.55,2604.3,2604.1,3.84002]
[1726972334677,0.55,2604.3,2604.2,3.83995]
[1726972334863,0.55,2604.3,2604.1,7.68001]
[1726972335059,0.55,2604.3,2604.2,3.83995]
[1726972338281,0.55,2604.3,2604.1,3.83999]
[1726972338575,0.85239,2604.3,2604.2,3.83995]
[1726972338878,7.78039,2604.3,2604.2,3.83995]
[1726972342985,7.78039,2604.3,2604.1,3.83999]
[1726972342986,2.4739,2604.2,2604.1,3.83999]
[1726972343192,3.0239,2604.2,2604.1,3.83999]
[1726972343487,4.104329,2604.2,2604.1,3.83999]
[1726972344950,0.55,2604.1,2603.9,7.68059]
[1726972345285,0.55,2604.1,2604.0,3.84024]
[1726972345456,0.55,2604.1,2603.9,7.68055]
[1726972345637,0.55,2604.1,2604.0,3.84024]
[1726972345837,1.6834719,2604.1,2604.0,3.84024]
[1726972346287,1.6834719,2604.1,2603.9,7.68054]
[1726972346578,1.6834719,2604.1,2603.7,3.84061]
[1726972346766,0.55,2603.9,2603.7,3.84061]
[1726972347083,0.55,2603.9,2603.5,3.84089]
[1726972347254,0.55,2603.7,2603.5,3.84089]
[1726972347651,0.55,2603.7,2603.6,3.84082]
[1726972349542,3.0239,2603.7,2603.5,3.84088]
[1726972349752,9.9519,2603.7,2603.5,3.84088]
[1726972350040,10.94709,2603.7,2603.5,3.8408798]
[1726972350480,10.94709,2603.7,2603.5,7.6817598]
[1726972350893,10.94709,2603.7,2603.5,3.8408798]
[1726972351077,10.94709,2603.7,2603.3,3.84118]
[1726972351668,10.94709,2603.7,2603.4,3.84111]
[1726972351944,10.94709,2603.7,2603.3,7.68236]
[1726972351945,0.55,2603.5,2603.3,7.68236]
[1726972352155,0.55,2603.5,2603.4,3.84113]
[1726972353145,0.55,2603.5,2603.3,3.84118]
[1726972353580,0.55,2603.5,2603.3,7.68236]
[1726972355191,2.8718,2603.4,2603.3,3.84118]
[1726972355815,0.55,2603.3,2603.1,3.8415]
[1726972356149,0.55,2603.3,2602.9,3.84177]
[1726972356258,0.55,2603.3,2603.0,3.84163]
[1726972356855,0.55,2603.3,2602.9,3.84177]
[1726972357159,0.55,2603.1,2602.9,3.84177]
[1726972357491,7.478,2603.0,2602.9,3.84177]
[1726972357856,8.34452598,2603.0,2602.9,3.84177]
[1726972358056,8.34452598,2603.0,2602.8,0.036132]
[1726972358291,0.55,2602.9,2602.8,0.036132]
[1726972358456,2.8718,2602.9,2602.8,3.878142]
[1726972359585,6.928,2603.0,2602.8,3.878142]
[1726972359586,6.928,2603.0,2602.9,3.84186]
[1726972362376,6.928,2603.0,2602.9,7.8578802]
[1726972367029,2.4924,2603.6,2603.5,3.84098]
[1726972367030,3.0424,2603.6,2603.5,3.84098]
[1726972367340,9.9704,2603.6,2603.5,3.84098]
[1726972367802,0.55,2603.5,2603.4,3.84113]
[1726972370325,0.55,2603.5,2603.2,3.84138]
[1726972370497,0.55,2603.3,2603.2,3.84131]
[1726972370886,0.55,2603.3,2603.2,3.84142]
[1726972371091,0.55,2603.3,2603.0,3.84159]
[1726972371092,3.0424,2603.3,2603.0,3.84159]
[1726972371432,4.15727446,2603.3,2603.1,3.84154]
[1726972373614,5.75467427,2603.3,2603.1,3.84154]
[1726972373820,2.397,2603.2,2603.0,3.84169]
[1726972374327,0.55,2603.1,2603.0,3.84169]
[1726972374635,1.11592743,2603.1,2603.0,3.84169]
[1726972374791,2.397,2603.0,2602.8,3.878042]
[1726972374990,7.478,2602.9,2602.8,3.878142]
[1726972375230,9.07539981,2602.9,2602.8,0.036132]
[1726972375416,10.05276922,2602.9,2602.8,0.036132]
[1726972378415,10.05276922,2602.9,2602.8,3.878142]
[1726972380614,8.45536941,2602.9,2602.8,3.878142]
[1726972381580,10.05276922,2602.9,2602.8,3.878142]
[1726972381747,8.45536941,2602.9,2602.8,3.878142]
[1726972381949,10.05276922,2602.9,2602.8,3.878142]
[1726972382149,6.928,2602.9,2602.8,6.300642]
[1726972383883,6.928,2602.9,2602.8,6.2808852]
[1726972388481,6.928,2602.9,2602.8,3.8583852]
[1726972390600,8.52539981,2602.9,2602.8,3.8583852]
[1726972390892,6.928,2602.9,2602.8,3.8583852]
[1726972391101,8.52539981,2602.9,2602.8,3.8583852]
[1726972393921,6.928,2602.9,2602.8,3.8583852]
[1726972394407,8.52896009,2602.9,2602.8,3.8583852]
[1726972394717,6.928,2602.9,2602.8,3.8583852]
[1726972395578,8.92946934,2602.9,2602.8,3.8583852]
[1726972396410,6.928,2602.9,2602.8,3.8583852]
[1726972396611,8.92946934,2602.9,2602.8,3.8583852]
[1726972397516,8.93012234,2602.9,2602.8,3.8583852]
[1726972398612,6.928,2602.9,2602.8,3.8583852]
[1726972399194,8.65856468,2602.9,2602.8,3.8583852]
[1726972399519,11.13366468,2602.9,2602.8,3.8583852]
[1726972400029,12.75995205,2602.9,2602.8,3.8583852]
[1726972402038,11.13366468,2602.9,2602.8,3.8583852]
[1726972402723,11.13366468,2602.9,2602.8,0.0163752]
[1726972404739,14.6571892,2602.9,2602.8,0.0163752]
[1726972404899,14.6571892,2602.9,2602.4,0.0382208]
[1726972404900,0.55,2602.6,2602.4,0.0382208]
[1726972405241,3.0251,2602.5,2602.4,0.0382208]
[1726972405439,6.54862452,2602.5,2602.4,0.0382208]
[1726972407043,10.39107452,2602.5,2602.4,0.0382208]
[1726972410103,13.18648286,2602.5,2602.4,0.0382208]
[1726972410303,12.42457007,2602.5,2602.4,0.0382208]
[1726972410845,15.42457007,2602.5,2602.4,0.0382208]
[1726972413207,11.58212007,2602.5,2602.4,0.0382208]
[1726972413606,15.42457007,2602.5,2602.4,0.0382208]
[1726972414810,15.42457007,2602.5,2601.7,0.0382208]
[1726972414811,2.3324,2602.0,2601.7,0.0382208]
[1726972415019,2.14539217,2601.8,2601.7,3.8817508]
[1726972417317,0.55,2601.8,2601.7,3.8817508]
[1726972417521,2.14539217,2601.8,2601.7,3.8817508]
[1726972417753,0.55,2601.8,2601.7,3.8817508]
[1726972419474,8.52339217,2601.9,2601.8,3.84349]
[1726972419475,6.928,2601.9,2601.8,3.84349]
[1726972421059,6.928,2601.9,2601.8,6.25939]
[1726972423169,7.478,2601.9,2601.8,6.25939]
[1726972425672,7.478,2601.9,2601.8,3.84349]
[1726972430261,8.38533922,2601.9,2601.7,3.8817508]
[1726972430472,0.55,2601.8,2601.7,3.8817508]
[1726972430851,0.55,2601.8,2601.7,0.0382208]
[1726972433088,2.14539217,2601.8,2601.7,0.0382208]
[1726972434292,2.14370818,2601.8,2601.7,0.0382208]
[1726972434450,7.60626653,2601.8,2601.7,0.0382208]
[1726972435488,13.39495514,2601.8,2601.7,0.0382208]
[1726972435691,10.60626653,2601.8,2601.7,0.0382208]
[1726972436394,10.60626653,2601.8,2600.9,0.0382208]
[1726972436396,3.84467,2601.0,2600.9,0.0382208]
[1726972436594,16.58076268,2601.0,2600.9,0.0382208]
[1726972436899,16.58073462,2601.0,2600.9,0.0382208]
[1726972437107,16.25959256,2601.0,2600.9,0.0382208]
[1726972437884,16.25896922,2601.0,2600.9,0.0382208]
[1726972439187,14.26883852,2601.0,2600.9,0.0382208]
[1726972439483,15.86028701,2601.0,2600.9,0.0382208]
[1726972439715,14.26883852,2601.0,2600.9,0.0382208]
[1726972440030,15.86028104,2601.0,2600.9,0.0382208]
[1726972440323,15.86053128,2601.0,2600.9,0.0382208]
[1726972440484,16.25896922,2601.0,2600.9,0.0382208]
[1726972441032,14.26883852,2601.0,2600.9,0.0382208]
[1726972441233,20.10363922,2601.0,2600.9,0.0382208]
[1726972441441,16.5801147,2601.0,2600.9,0.0382208]
[1726972441646,6.928,2601.0,2600.9,3.8830408]
[1726972442133,6.928,2601.0,2600.9,6.2837408]
[1726972442434,6.928,2601.0,2600.9,9.2837408]